fUSD/lending_fUSD_20260505
["ID","MTS","AMOUNT","RATE_DAILY","PERIOD"]
[421581796,1777917043000,-5201.47245336,0.00028,3]
[421581794,1777917043000,-3202.48650951,0.00028,3]
[421581792,1777917043000,-9661.38023036,0.00028,3]
[421581795,1777917043000,-875.89626483,0.00028,3]
[421581790,1777917043000,-1113.24150979,0.00027999,15]
[421581788,1777917043000,-1113.24150981,0.00027999,15]
[421581791,1777917043000,-190871.8846502,0.00028,3]
[421581789,1777917043000,-1113.24150981,0.00027999,15]
[421581787,1777917043000,-1113.24150981,0.00027999,15]
[421581786,1777917043000,-1113.24150981,0.00027999,15]
[421581782,1777917043000,-494.0,0.00027947,2]
[421581785,1777917043000,-331.39786663,0.00027956,2]
[421581784,1777917043000,-703.04712992,0.00027954,2]
[421581814,1777917044000,-380.335,0.00028,30]
[421581815,1777917044000,-617.0,0.00022533,5]
[421581816,1777917044000,-2037.84273216,0.00028,30]
[421581818,1777917044000,-756.68204639,0.00028,30]
[421581817,1777917044000,-498.59804136,0.00028,30]
[421581823,1777917045000,-17255.54619374,0.00028,30]
[421581821,1777917045000,-354.42310879,0.0002799,10]
[421581822,1777917045000,-1115.04689121,0.0002799,10]
[421581826,1777917046000,-8832.00078176,0.00028,30]
[421581828,1777917046000,-8374.57473752,0.00028,30]
[421581824,1777917046000,-43836.78634623,0.00028,30]
[421581829,1777917046000,-261.49835,0.00028,30]
[421581839,1777917046000,-955.48642844,0.00028,30]
[421581827,1777917046000,-6212.86499112,0.00028,30]
[421581825,1777917046000,-56142.15921439,0.00028,30]
[421581842,1777917443000,156.56,0.00030057,120]
[421581843,1777917603000,750.0,0.00022295,30]
[421581860,1777918231000,-300.0,0.00014992,2]
[421581864,1777918231000,-500.0,0.00014993,2]
[421581858,1777918231000,-250.0,0.00013525,2]
[421581863,1777918231000,-500.0,0.00014993,2]
[421581862,1777918231000,-200.0,0.00014993,2]
[421581856,1777918231000,-151.49,0.00013315,2]
[421581857,1777918231000,-250.0,0.00013525,2]
[421581855,1777918231000,-165.07,0.00013046,2]
[421581854,1777918231000,-157.62,0.00012296,2]
[421581853,1777918231000,-151.49,0.00011096,2]
[421581865,1777918231000,-151.0,0.00014993,2]
[421581859,1777918231000,-250.0,0.00014,2]
[421581866,1777918231000,-500.0,0.00014993,2]
[421581861,1777918231000,-1200.0,0.00014992,2]
[421581872,1777918231000,-544.46969428,0.00014993,2]
[421581867,1777918231000,-151.0,0.00014993,2]
[421581880,1777918231000,-151.0,0.00014993,2]
[421581879,1777918231000,-151.0,0.00014993,2]
[421581877,1777918231000,-211.75754912,0.00014993,2]
[421581870,1777918231000,-151.0,0.00014993,2]
[421581875,1777918231000,-151.0,0.00014993,2]
[421581878,1777918231000,-151.0,0.00014993,2]
[421581868,1777918231000,-151.0,0.00014993,2]
[421581871,1777918231000,-151.0,0.00014993,2]
[421581874,1777918231000,-151.0,0.00014993,2]
[421581873,1777918231000,-151.0,0.00014993,2]
[421581869,1777918231000,-500.0,0.00014993,2]
[421581876,1777918231000,-151.0,0.00014993,2]
[421581969,1777918232000,-157.0,0.00021,2]
[421581938,1777918232000,-175.0,0.0002,2]
[421581950,1777918232000,-570.0,0.0002,2]
[421581954,1777918232000,-10356.2,0.00020145,2]
[421581946,1777918232000,-156.0,0.0002,2]
[421581948,1777918232000,-167.0,0.0002,2]
[421581944,1777918232000,-400.0,0.0002,2]
[421581956,1777918232000,-11994.59,0.00020145,2]
[421581963,1777918232000,-250.1,0.00020381,2]
[421581965,1777918232000,-574.47,0.00020951,2]
[421581967,1777918232000,-794.89,0.00020951,2]
[421581960,1777918232000,-7194.74,0.00020145,2]
[421581972,1777918232000,-167.0,0.00021,2]
[421581971,1777918232000,-156.0,0.00021,2]
[421581966,1777918232000,-4257.43,0.00020951,2]
[421581958,1777918232000,-150.99,0.00020145,2]
[421581970,1777918232000,-418.0,0.00021,2]
[421581937,1777918232000,-151.49,0.00019973,2]
[421581962,1777918232000,-4483.95,0.00020145,2]
[421581973,1777918232000,-570.0,0.00021,2]
[421581975,1777918232000,-580.68109134,0.000217,2]
[421581977,1777918232000,-406.0,0.000217,2]
[421581976,1777918232000,-412.0,0.000217,2]
[421581978,1777918232000,-153.0,0.000217,2]
[421581974,1777918232000,-166.66,0.00021618,2]
[421581968,1777918232000,-175.0,0.00021,2]
[421581927,1777918232000,-500.0,0.0001841,2]
[421581923,1777918232000,-250.1,0.0001841,2]
[421581929,1777918232000,-151.88198565,0.00018684,2]
[421581983,1777918232000,-175.0,0.00022,2]
[421581888,1777918232000,-500.0,0.00014993,2]
[421581890,1777918232000,-1289.58892491,0.00014993,2]
[421581891,1777918232000,-151.49,0.00015534,2]
[421581889,1777918232000,-308.71482795,0.00014993,2]
[421581887,1777918232000,-500.0,0.00014993,2]
[421581881,1777918232000,-151.0,0.00014993,2]
[421581886,1777918232000,-500.0,0.00014993,2]
[421581885,1777918232000,-151.0,0.00014993,2]
[421581882,1777918232000,-151.0,0.00014993,2]
[421581883,1777918232000,-500.0,0.00014993,2]
[421581892,1777918232000,-1337.30371513,0.00015541,2]
[421581952,1777918232000,-9999.99,0.00020145,2]
[421581894,1777918232000,-300.0,0.00016,2]
[421581910,1777918232000,-151.49,0.00017754,2]
[421581907,1777918232000,-1466.03415111,0.00017733,2]
[421581904,1777918232000,-1491.30447232,0.00017185,2]
[421581912,1777918232000,-500.0,0.00017844,2]
[421581897,1777918232000,-250.1,0.00016438,2]
[421581899,1777918232000,-1680.0,0.00016492,2]
[421581902,1777918232000,-1438.09495884,0.00016637,2]
[421581916,1777918232000,-350.0,0.00018,2]
[421581920,1777918232000,-2351.0,0.00018141,2]
[421581940,1777918232000,-157.0,0.0002,2]
[421581942,1777918232000,-418.0,0.0002,2]
[421581933,1777918232000,-3292.0,0.00019955,2]
[421581895,1777918232000,-1386.78395259,0.00016089,2]
[421581979,1777918232000,-410.0,0.000217,2]
[421582026,1777918232000,-431.92189461,0.00025,2]
[421581982,1777918232000,-2539.0,0.0002195,2]
[421582011,1777918232000,-570.0,0.00023,2]
[421582014,1777918232000,-2239.74387037,0.00023937,2]
[421582015,1777918232000,-2760.25612963,0.00023937,2]
[421582013,1777918232000,-200.0,0.00023807,2]
[421582016,1777918232000,-175.0,0.00024,2]
[421582017,1777918232000,-418.0,0.00024,2]
[421582021,1777918232000,-250.1,0.00024324,2]
[421582020,1777918232000,-156.56,0.00024046,2]
[421582019,1777918232000,-570.0,0.00024,2]
[421582018,1777918232000,-167.0,0.00024,2]
[421582023,1777918232000,-1000.0,0.00024658,2]
[421582034,1777918232000,-250.1,0.00026296,2]
[421582022,1777918232000,-418.0,0.00024658,2]
[421582039,1777918232000,-370.50525017,0.00027123,2]
[421582027,1777918232000,-180.0,0.00025,2]
[421582029,1777918232000,-150.0,0.000252,7]
[421582032,1777918232000,-150.0,0.000252,2]
[421582028,1777918232000,-580.0,0.00025,2]
[421582030,1777918232000,-150.0,0.000252,2]
[421582033,1777918232000,-2000.0,0.00025623,2]
[421582031,1777918232000,-150.0,0.000252,2]
[421582036,1777918232000,-325.26695733,0.00027123,2]
[421582035,1777918232000,-443.0,0.0002655,10]
[421582037,1777918232000,-844.73708973,0.00027123,2]
[421582038,1777918232000,-5537.88468949,0.00027123,2]
[421581981,1777918232000,-580.68109134,0.000219,2]
[421582025,1777918232000,-175.77307909,0.00025,2]
[421582012,1777918232000,-173.53,0.00023411,2]
[421582024,1777918232000,-168.32,0.00024713,2]
[421582006,1777918232000,-175.0,0.00023,2]
[421582007,1777918232000,-418.0,0.00023,2]
[421581980,1777918232000,-162.48539177,0.00021891,2]
[421581986,1777918232000,-156.0,0.00022,2]
[421581996,1777918232000,-500.0,0.00022463,2]
[421581997,1777918232000,-169.76,0.00022466,2]
[421581985,1777918232000,-418.0,0.00022,2]
[421581988,1777918232000,-570.0,0.00022,2]
[421581987,1777918232000,-167.0,0.00022,2]
[421581992,1777918232000,-250.1,0.00022353,2]
[421581991,1777918232000,-580.68109134,0.000223,2]
[421581993,1777918232000,-231.53,0.00022397,2]
[421581990,1777918232000,-151.49,0.00022192,2]
[421581994,1777918232000,-164.85882094,0.00022407,2]
[421581989,1777918232000,-580.68109134,0.000221,2]
[421581984,1777918232000,-166.61279268,0.00022,2]
[421581998,1777918232000,-168.32,0.00022466,2]
[421582002,1777918232000,-580.68109134,0.000226,2]
[421582003,1777918232000,-150.0,0.00022735,2]
[421582000,1777918232000,-3670.2,0.00022562,2]
[421582001,1777918232000,-685.25,0.00022562,2]
[421582009,1777918232000,-167.0,0.00023,2]
[421582010,1777918232000,-2100.0,0.00023,2]
[421581999,1777918232000,-495.23,0.00022562,2]
[421582005,1777918232000,-200.0,0.00022791,2]
[421582004,1777918232000,-2000.0,0.00022776,2]
[421582008,1777918232000,-168.52156229,0.00023,2]
[421581995,1777918232000,-1699.23,0.00022428,2]
[421582042,1777918233000,-362.96317184,0.00027123,2]
[421582040,1777918233000,-471.16,0.00027123,2]
[421582041,1777918233000,-574.44601328,0.00027123,2]
[421582046,1777918233000,-1759.1021573,0.00027216,15]
[421582043,1777918233000,-195.0,0.00027123,2]
[421582045,1777918233000,-153.494,0.00027196,15]
[421582044,1777918233000,-4590.47597554,0.00027159,2]
[421582082,1777918240000,-500.0,0.00027799,2]
[421582085,1777918240000,-500.0,0.00027799,2]
[421582081,1777918240000,-500.0,0.00027799,2]
[421582080,1777918240000,-500.0,0.00027799,2]
[421582079,1777918240000,-500.0,0.00027799,2]
[421582077,1777918240000,-253.688231,0.0002744,14]
[421582088,1777918240000,-150.0,0.00027799,2]
[421582078,1777918240000,-500.0,0.00027799,2]
[421582069,1777918240000,-703.04712992,0.00027373,2]
[421582072,1777918240000,-500.0,0.000274,7]
[421582074,1777918240000,-225.748383,0.0002744,14]
[421582075,1777918240000,-297.788034,0.0002744,14]
[421582076,1777918240000,-236.357165,0.0002744,14]
[421582071,1777918240000,-418.0,0.00027397,2]
[421582070,1777918240000,-1461.98,0.00027397,2]
[421582084,1777918240000,-441.90393385,0.00027799,2]
[421582067,1777918240000,-25.78237326,0.00027216,15]
[421582057,1777918240000,-1530.98972336,0.00027159,2]
[421582056,1777918240000,-500.0,0.00022466,2]
[421582073,1777918240000,-225.497189,0.0002744,14]
[421582087,1777918240000,-500.0,0.00027799,2]
[421582068,1777918240000,-314.80246944,0.00027216,15]
[421582083,1777918240000,-500.0,0.00027799,2]
[421582109,1777918240000,-500.0,0.00027799,2]
[421582107,1777918240000,-500.0,0.00027799,2]
[421582106,1777918240000,-500.0,0.00027799,2]
[421582104,1777918240000,-500.0,0.00027799,2]
[421582103,1777918240000,-500.0,0.00027799,2]
[421582105,1777918240000,-500.0,0.00027799,2]
[421582102,1777918240000,-500.0,0.00027799,2]
[421582091,1777918240000,-500.0,0.00027799,2]
[421582096,1777918240000,-500.0,0.00027799,2]
[421582089,1777918240000,-500.0,0.00027799,2]
[421582086,1777918240000,-500.0,0.00027799,2]
[421582097,1777918240000,-500.0,0.00027799,2]
[421582100,1777918240000,-500.0,0.00027799,2]
[421582092,1777918240000,-500.0,0.00027799,2]
[421582090,1777918240000,-500.0,0.00027799,2]
[421582101,1777918240000,-500.0,0.00027799,2]
[421582099,1777918240000,-500.0,0.00027799,2]
[421582094,1777918240000,-500.0,0.00027799,2]
[421582098,1777918240000,-500.0,0.00027799,2]
[421582095,1777918240000,-500.0,0.00027799,2]
[421582093,1777918240000,-500.0,0.00027799,2]
[421582117,1777918241000,-572.17177734,0.000278,2]
[421582112,1777918241000,-500.0,0.00027799,2]
[421582114,1777918241000,-500.0,0.00027799,2]
[421582113,1777918241000,-500.0,0.00027799,2]
[421582111,1777918241000,-500.0,0.00027799,2]
[421582110,1777918241000,-500.0,0.00027799,2]
[421582116,1777918241000,-5000.0,0.000278,2]
[421582127,1777918241000,-210817.04557944,0.000279,2]
[421582115,1777918241000,-446.70051334,0.000278,2]
[421582126,1777918241000,-2000.0,0.000279,2]
[421582128,1777918241000,-108544.47670172,0.000279,2]
[421582125,1777918241000,-200.0,0.000279,2]
[421582124,1777918241000,-504.0,0.000279,5]
[421582119,1777918241000,-524.37061754,0.00027809,2]
[421582123,1777918241000,-387.9371476,0.00027899,2]
[421582118,1777918241000,-2500.0,0.000278,2]
[421582121,1777918241000,-648.88,0.0002789,10]
[421582120,1777918241000,-207.45455691,0.0002789,2]
[421582122,1777918241000,-442.57027989,0.00027899,2]
[421582137,1777918242000,-810.08025607,0.00027159,2]
[421582146,1777918243000,-112.62597476,0.000279,2]
[421582140,1777918243000,-58677.31763849,0.000279,2]
[421582141,1777918243000,-5555.02612907,0.000279,2]
[421582138,1777918243000,-1739.90715317,0.00027159,2]
[421582139,1777918243000,-72268.80432839,0.000279,2]
[421582160,1777918248000,-1116.41,0.0002789,10]
[421582159,1777918248000,-506.0,0.00027137,2]
[421582162,1777918248000,-65250.87306259,0.000279,2]
[421582161,1777918248000,-3456.48856606,0.000279,2]
[421582163,1777918248000,-1081.46882499,0.000279,2]
[421582211,1777918262000,5000.0,0.000218,120]
[421582212,1777918262000,1505.03389402,0.0002212,120]
[421582210,1777918262000,5000.0,0.0002387,120]
[421582213,1777918342000,234.84,0.00025527,120]
[421582214,1777918731000,-500.0,0.0001831,2]
[421582215,1777918770000,-155.4,0.0001841,2]
[421582216,1777918961000,371.91,0.00029452,120]
[421582217,1777918999000,166.66,0.00022483,30]
[421582224,1777919282000,279.77602886,8e-05,2]
[421582225,1777919349000,-4997.705886,0.00013,2]
[421582226,1777919349000,-250.0,0.00014,2]
[421582228,1777919349000,-261.045288,0.000148,5]
[421582227,1777919349000,-200.0,0.000147,5]
[421582233,1777919431000,-629.47505527,0.0001485,2]
[421582234,1777919431000,-600.0,0.000149,5]
[421582235,1777919431000,-200.44978077,0.0001499,2]
[421582231,1777919431000,-629.47505528,0.000139,2]
[421582232,1777919431000,-138.954712,0.000148,5]
[421582289,1777919432000,-500.0,0.00014999,2]
[421582286,1777919432000,-634.73674555,0.00014999,2]
[421582282,1777919432000,-500.0,0.00014999,2]
[421582284,1777919432000,-500.0,0.00014999,2]
[421582267,1777919432000,-500.0,0.00014999,2]
[421582263,1777919432000,-500.0,0.00014999,2]
[421582264,1777919432000,-500.0,0.00014999,2]
[421582271,1777919432000,-500.0,0.00014999,2]
[421582307,1777919432000,-500.0,0.00014999,2]
[421582266,1777919432000,-500.0,0.00014999,2]
[421582270,1777919432000,-640.23515524,0.00014999,2]
[421582276,1777919432000,-500.0,0.00014999,2]
[421582278,1777919432000,-500.0,0.00014999,2]
[421582265,1777919432000,-500.0,0.00014999,2]
[421582274,1777919432000,-500.0,0.00014999,2]
[421582280,1777919432000,-500.0,0.00014999,2]
[421582297,1777919432000,-500.0,0.00014999,2]
[421582295,1777919432000,-500.0,0.00014999,2]
[421582293,1777919432000,-500.0,0.00014999,2]
[421582305,1777919432000,-500.0,0.00014999,2]
[421582309,1777919432000,-500.0,0.00014999,2]
[421582303,1777919432000,-500.0,0.00014999,2]
[421582301,1777919432000,-500.0,0.00014999,2]
[421582291,1777919432000,-500.0,0.00014999,2]
[421582262,1777919432000,-500.0,0.00014999,2]
[421582260,1777919432000,-500.0,0.00014999,2]
[421582261,1777919432000,-500.0,0.00014999,2]
[421582237,1777919432000,-300.0,0.00014998,2]
[421582236,1777919432000,-1200.0,0.00014998,2]
[421582239,1777919432000,-300.0,0.00014998,2]
[421582242,1777919432000,-425.98448439,0.00014999,2]
[421582238,1777919432000,-150.0,0.00014998,2]
[421582240,1777919432000,-418.88048439,0.00014999,2]
[421582243,1777919432000,-74.01551561,0.00014999,2]
[421582241,1777919432000,-81.11951561,0.00014999,2]
[421582245,1777919432000,-62.91365978,0.00014999,2]
[421582244,1777919432000,-208.20651835,0.00014999,2]
[421582246,1777919432000,-223.36507986,0.00014999,2]
[421582269,1777919432000,-500.0,0.00014999,2]
[421582258,1777919432000,-500.0,0.00014999,2]
[421582256,1777919432000,-500.0,0.00014999,2]
[421582257,1777919432000,-500.0,0.00014999,2]
[421582254,1777919432000,-500.0,0.00014999,2]
[421582247,1777919432000,-610.85963096,0.00014999,2]
[421582250,1777919432000,-500.0,0.00014999,2]
[421582255,1777919432000,-500.0,0.00014999,2]
[421582252,1777919432000,-500.0,0.00014999,2]
[421582251,1777919432000,-500.0,0.00014999,2]
[421582249,1777919432000,-500.0,0.00014999,2]
[421582253,1777919432000,-500.0,0.00014999,2]
[421582259,1777919432000,-500.0,0.00014999,2]
[421582248,1777919432000,-283.61333132,0.00014999,2]
[421582299,1777919432000,-500.0,0.00014999,2]
[421582268,1777919432000,-500.0,0.00014999,2]
[421582314,1777919432000,-500.0,0.00014999,2]
[421582375,1777919432000,-500.0,0.00014999,2]
[421582377,1777919432000,-500.0,0.00014999,2]
[421582384,1777919432000,-150.0,0.00014999,2]
[421582386,1777919432000,-93367.9772793,0.00015,2]
[421582379,1777919432000,-500.0,0.00014999,2]
[421582381,1777919432000,-500.0,0.00014999,2]
[421582383,1777919432000,-500.0,0.00014999,2]
[421582388,1777919432000,-299.23478,0.00015,2]
[421582402,1777919432000,-699.59791438,0.00015,2]
[421582391,1777919432000,-22589.85871958,0.00015,2]
[421582401,1777919432000,-388.019697,0.00015,2]
[421582405,1777919432000,-10878.70377158,0.00015,2]
[421582393,1777919432000,-9293.7297478,0.00015,2]
[421582409,1777919432000,-659.1457183,0.00015,2]
[421582407,1777919432000,-4751.41049392,0.00015,2]
[421582396,1777919432000,-4600.74438523,0.00015,2]
[421582398,1777919432000,-1763.20802313,0.00015,2]
[421582411,1777919432000,-952.0,0.00015,2]
[421582416,1777919432000,-13115.57825408,0.00015,2]
[421582414,1777919432000,-2088.41628585,0.00015,2]
[421582417,1777919432000,-615.73022702,0.00015,2]
[421582419,1777919432000,-627.92076636,0.00015,2]
[421582418,1777919432000,-2360.62950549,0.00015,2]
[421582420,1777919432000,-540.58542602,0.00015,2]
[421582312,1777919432000,-500.0,0.00014999,2]
[421582373,1777919432000,-500.0,0.00014999,2]
[421582371,1777919432000,-500.0,0.00014999,2]
[421582273,1777919432000,-500.0,0.00014999,2]
[421582369,1777919432000,-500.0,0.00014999,2]
[421582323,1777919432000,-500.0,0.00014999,2]
[421582332,1777919432000,-500.0,0.00014999,2]
[421582317,1777919432000,-500.0,0.00014999,2]
[421582319,1777919432000,-500.0,0.00014999,2]
[421582330,1777919432000,-500.0,0.00014999,2]
[421582325,1777919432000,-500.0,0.00014999,2]
[421582321,1777919432000,-500.0,0.00014999,2]
[421582328,1777919432000,-500.0,0.00014999,2]
[421582334,1777919432000,-500.0,0.00014999,2]
[421582336,1777919432000,-500.0,0.00014999,2]
[421582340,1777919432000,-500.0,0.00014999,2]
[421582338,1777919432000,-500.0,0.00014999,2]
[421582367,1777919432000,-500.0,0.00014999,2]
[421582346,1777919432000,-350.0,0.00014999,2]
[421582344,1777919432000,-500.0,0.00014999,2]
[421582348,1777919432000,-500.0,0.00014999,2]
[421582352,1777919432000,-500.0,0.00014999,2]
[421582360,1777919432000,-500.0,0.00014999,2]
[421582350,1777919432000,-500.0,0.00014999,2]
[421582363,1777919432000,-500.0,0.00014999,2]
[421582365,1777919432000,-500.0,0.00014999,2]
[421582355,1777919432000,-150.0,0.00014999,2]
[421582357,1777919432000,-500.0,0.00014999,2]
[421582359,1777919432000,-500.0,0.00014999,2]
[421582342,1777919432000,-500.0,0.00014999,2]
[421582423,1777919433000,-7565.24911721,0.00015,2]
[421582422,1777919433000,-26147.91013848,0.00015,2]
[421582432,1777919438000,-2947.50193043,0.00015,2]
[421582431,1777919438000,-500.0,0.00015,2]
[421582429,1777919438000,-1826.79262493,0.00015,2]
[421582430,1777919438000,-2026.18964316,0.00015,2]
[421582451,1777919440000,-330454.21819592,0.00015,2]
[421582434,1777919440000,-427687.12781069,0.00015,2]
[421582433,1777919440000,-1404.39996,0.00015,2]
[421582452,1777919440000,-59394.52814675,0.00015,2]
[421582453,1777919440000,-442.46277322,0.00015,2]
[421582461,1777919440000,-1346916.89790847,0.00015,2]
[421582465,1777919440000,-629.47505527,0.000158,2]
[421582468,1777919440000,-300.0,0.00016,2]
[421582466,1777919440000,-1447.15125671,0.000159,2]
[421582470,1777919440000,-255.0,0.00016123,2]
[421582463,1777919440000,-10000.0,0.000155,2]
[421582502,1777919441000,-823.0,0.00019662,2]
[421582508,1777919441000,-338.0,0.0002,2]
[421582514,1777919441000,-500.0,0.0002,2]
[421582512,1777919441000,-424.0,0.0002,2]
[421582506,1777919441000,-154.0,0.0002,2]
[421582507,1777919441000,-156.0,0.0002,2]
[421582515,1777919441000,-186.20317545,0.0002,2]
[421582504,1777919441000,-1447.15125663,0.000199,2]
[421582505,1777919441000,-2092.0,0.00019962,2]
[421582498,1777919441000,-1447.15125663,0.00018567,2]
[421582501,1777919441000,-250.0,0.00019155,2]
[421582511,1777919441000,-168.4113931,0.0002,2]
[421582510,1777919441000,-156.0,0.0002,2]
[421582516,1777919441000,-1289.58892491,0.0002,2]
[421582513,1777919441000,-200.0,0.0002,2]
[421582519,1777919441000,-398.0,0.0002,2]
[421582518,1777919441000,-407.0,0.0002,2]
[421582523,1777919441000,-411.0,0.0002041,2]
[421582517,1777919441000,-400.0,0.0002,2]
[421582527,1777919441000,-154.0,0.00021,2]
[421582525,1777919441000,-496.3,0.00020951,2]
[421582520,1777919441000,-616.0,0.00020022,2]
[421582521,1777919441000,-250.0,0.00020251,2]
[421582522,1777919441000,-235.3,0.00020381,2]
[421582526,1777919441000,-628.09,0.00020951,2]
[421582524,1777919441000,-1337.30371513,0.00020548,2]
[421582509,1777919441000,-155.0,0.0002,2]
[421582500,1777919441000,-168.15144076,0.00019155,2]
[421582480,1777919441000,-587.0,0.00017965,2]
[421582497,1777919441000,-3203.48,0.00018533,2]
[421582471,1777919441000,-420.0,0.00016415,2]
[421582474,1777919441000,-235.3,0.00016438,2]
[421582478,1777919441000,-433.0,0.00017338,2]
[421582477,1777919441000,-1447.15125663,0.00017233,2]
[421582476,1777919441000,-247.89,0.00016712,2]
[421582473,1777919441000,-420.0,0.00016415,2]
[421582475,1777919441000,-1680.0,0.00016498,2]
[421582529,1777919441000,-338.0,0.00021,2]
[421582479,1777919441000,-587.0,0.00017965,2]
[421582482,1777919441000,-2351.0,0.00018148,2]
[421582481,1777919441000,-350.0,0.00018,2]
[421582491,1777919441000,-999.99,0.00018533,2]
[421582499,1777919441000,-736.0,0.00018628,2]
[421582484,1777919441000,-235.3,0.0001841,2]
[421582488,1777919441000,-3007.57,0.00018533,2]
[421582486,1777919441000,-150.99,0.00018533,2]
[421582483,1777919441000,-500.0,0.00018201,2]
[421582487,1777919441000,-519.59,0.00018533,2]
[421582489,1777919441000,-9999.99,0.00018533,2]
[421582490,1777919441000,-3789.1,0.00018533,2]
[421582492,1777919441000,-645.7,0.00018533,2]
[421582493,1777919441000,-174.33,0.00018533,2]
[421582494,1777919441000,-17187.63,0.00018533,2]
[421582503,1777919441000,-761.0,0.00019662,2]
[421582496,1777919441000,-1625.28,0.00018533,2]
[421582495,1777919441000,-4999.99,0.00018533,2]
[421582485,1777919441000,-3216.55,0.00018533,2]
[421582528,1777919441000,-164.0,0.00021,2]
[421582539,1777919441000,-500.0,0.00021188,2]
[421582535,1777919441000,-501.42645095,0.00021188,2]
[421582559,1777919441000,-261.44601421,0.00021918,10]
[421582557,1777919441000,-160.0,0.00021909,2]
[421582567,1777919441000,-235.3,0.00022353,2]
[421582568,1777919441000,-168.61590923,0.00022407,2]
[421582566,1777919441000,-409.5332629,0.000223,2]
[421582570,1777919441000,-168.61590923,0.00022407,2]
[421582569,1777919441000,-168.61590923,0.00022407,2]
[421582572,1777919441000,-427.84,0.00022562,2]
[421582575,1777919441000,-409.5332629,0.000226,2]
[421582576,1777919441000,-646.48,0.00022667,2]
[421582573,1777919441000,-541.46,0.00022562,2]
[421582571,1777919441000,-2251.65069118,0.00022562,2]
[421582574,1777919441000,-1447.15125663,0.00022567,2]
[421582577,1777919441000,-409.5332629,0.000228,2]
[421582584,1777919441000,-500.0,0.00023489,2]
[421582583,1777919441000,-200.0,0.0002347,2]
[421582588,1777919441000,-167.31,0.00023669,2]
[421582578,1777919441000,-154.0,0.00023,2]
[421582586,1777919441000,-1123.0,0.00023551,2]
[421582534,1777919441000,-500.0,0.00021188,2]
[421582581,1777919441000,-2000.0,0.00023243,2]
[421582580,1777919441000,-424.0,0.00023,2]
[421582579,1777919441000,-338.0,0.00023,2]
[421582587,1777919441000,-5000.0,0.00023668,2]
[421582585,1777919441000,-196.59,0.00023504,2]
[421582590,1777919441000,-390.57,0.00023709,2]
[421582589,1777919441000,-252.0,0.000237,3]
[421582565,1777919441000,-409.5332629,0.000221,2]
[421582558,1777919441000,-162.48539177,0.00021909,2]
[421582582,1777919441000,-200.0,0.00023243,2]
[421582562,1777919441000,-338.0,0.00022,2]
[421582561,1777919441000,-154.0,0.00022,2]
[421582536,1777919441000,-500.55322451,0.00021188,2]
[421582531,1777919441000,-156.0,0.00021,2]
[421582530,1777919441000,-165.0,0.00021,2]
[421582537,1777919441000,-500.0,0.00021188,2]
[421582538,1777919441000,-500.0,0.00021188,2]
[421582533,1777919441000,-1386.78395259,0.00021096,2]
[421582545,1777919441000,-152.0,0.000217,2]
[421582543,1777919441000,-1152.0,0.00021518,2]
[421582540,1777919441000,-500.8580237,0.00021188,2]